[Event "Titled Tuesday Blitz July 26 Late 2022"]
[White "Andreikin, Dmitry"]
[Black "Riehle, Marco"]
[WhiteFideId "4158814"]
[BlackFideId "12904392"]
[WhiteElo "2736"]
[BlackElo "2462"]
[Result "1/2-1/2"]
[Round "06"]
[TimeControl "180+1"]
[Date "2022.07.26"]
[WhiteClock "0:00:30"]
[BlackClock "0:00:27"]

1. d4 {[%clk 0:03:00]}  d5 {[%clk 0:02:57]} 2. c4 {[%clk 0:03:01]}  e6 {[%clk 0:02:57]} 3. Nf3 {[%clk 0:03:01]}  Nf6 {[%clk 0:02:57]} 4. g3 {[%clk 0:03:01]}  dxc4 {[%clk 0:02:57]} 5. Bg2 {[%clk 0:03:01]}  Bb4+ {[%clk 0:02:57]} 6. Nbd2 {[%clk 0:02:56]}  Nc6 {[%clk 0:02:55]} 7. O-O {[%clk 0:02:54]}  Bxd2 {[%clk 0:02:45]} 8. Bxd2 {[%clk 0:02:41]}  Nxd4 {[%clk 0:02:39]} 9. Qa4+ {[%clk 0:02:20]}  c6 {[%clk 0:02:34]} 10. Nxd4 {[%clk 0:02:08]}  Qxd4 {[%clk 0:02:35]} 11. Bxc6+ {[%clk 0:01:59]}  Bd7 {[%clk 0:02:26]} 12. Bxd7+ {[%clk 0:01:58]}  Qxd7 {[%clk 0:02:24]} 13. Qb4 {[%clk 0:01:56]}  a5 {[%clk 0:02:18]} 14. Qc3 {[%clk 0:01:52]}  O-O {[%clk 0:02:08]} 15. Bh6 {[%clk 0:01:52]}  b5 {[%clk 0:01:57]} 16. Rfd1 {[%clk 0:01:36]}  Qe7 {[%clk 0:01:54]} 17. Bg5 {[%clk 0:01:32]}  Rfd8 {[%clk 0:01:49]} 18. a4 {[%clk 0:01:30]}  Rxd1+ {[%clk 0:01:38]} 19. Rxd1 {[%clk 0:01:31]}  bxa4 {[%clk 0:01:38]} 20. Qxc4 {[%clk 0:01:31]}  h6 {[%clk 0:01:34]} 21. Bxf6 {[%clk 0:01:06]}  Qxf6 {[%clk 0:01:35]} 22. Qe4 {[%clk 0:01:04]}  Rb8 {[%clk 0:01:14]} 23. Qxa4 {[%clk 0:01:03]}  Qxb2 {[%clk 0:01:10]} 24. Qxa5 {[%clk 0:01:00]}  Qxe2 {[%clk 0:01:08]} 25. Qd2 {[%clk 0:01:01]}  Qxd2 {[%clk 0:01:07]} 26. Rxd2 {[%clk 0:01:02]}  g5 {[%clk 0:01:05]} 27. Kg2 {[%clk 0:01:01]}  Kg7 {[%clk 0:01:03]} 28. Rd4 {[%clk 0:01:01]}  Kg6 {[%clk 0:01:03]} 29. h4 {[%clk 0:01:02]}  Rb5 {[%clk 0:01:02]} 30. hxg5 {[%clk 0:01:02]}  hxg5 {[%clk 0:01:03]} 31. Ra4 {[%clk 0:01:02]}  f5 {[%clk 0:01:03]} 32. Ra6 {[%clk 0:01:02]}  Kf6 {[%clk 0:01:03]} 33. Rc6 {[%clk 0:01:02]}  Rd5 {[%clk 0:01:03]} 34. Ra6 {[%clk 0:01:02]}  Ke5 {[%clk 0:01:02]} 35. Rb6 {[%clk 0:01:03]}  Rd6 {[%clk 0:01:01]} 36. Rb5+ {[%clk 0:00:58]}  Kf6 {[%clk 0:01:01]} 37. Ra5 {[%clk 0:00:58]}  e5 {[%clk 0:01:00]} 38. Rb5 {[%clk 0:00:57]}  e4 {[%clk 0:01:00]} 39. g4 {[%clk 0:00:51]}  fxg4 {[%clk 0:00:34]} 40. Kg3 {[%clk 0:00:51]}  Rd3+ {[%clk 0:00:32]} 41. Kxg4 {[%clk 0:00:50]}  Rf3 {[%clk 0:00:33]} 42. Rb2 {[%clk 0:00:37]}  Rf4+ {[%clk 0:00:26]} 43. Kg3 {[%clk 0:00:37]}  Kf5 {[%clk 0:00:26]} 44. Rb5+ {[%clk 0:00:36]}  Kg6 {[%clk 0:00:27]} 45. Rb6+ {[%clk 0:00:35]}  Kh5 {[%clk 0:00:27]} 46. Re6 {[%clk 0:00:34]}  Rf3+ {[%clk 0:00:26]} 47. Kg2 {[%clk 0:00:35]}  Rf4 {[%clk 0:00:27]} 48. Kg3 {[%clk 0:00:35]}  Rg4+ {[%clk 0:00:25]} 49. Kh3 {[%clk 0:00:34]}  Rh4+ {[%clk 0:00:26]} 50. Kg2 {[%clk 0:00:33]}  Rf4 {[%clk 0:00:27]} 51. Kg3 {[%clk 0:00:30]} 1/2-1/2


[Site "https://www.chess.com"]

[Event "Titled Tuesday Blitz July 26 Late 2022"]
[White "Averjanov, Alexey"]
[Black "Raja Harshit"]
[WhiteFideId "14109867"]
[BlackFideId "5089000"]
[WhiteElo "2625"]
[BlackElo "2338"]
[Result "0-1"]
[Round "06"]
[TimeControl "180+1"]
[Date "2022.07.26"]
[WhiteClock "0:02:07"]
[BlackClock "0:01:47"]

1. d4 {[%clk 0:02:54]}  Nf6 {[%clk 0:02:59]} 2. c4 {[%clk 0:02:54]}  e6 {[%clk 0:03:00]} 3. Nf3 {[%clk 0:02:52]}  d5 {[%clk 0:03:00]} 4. e3 {[%clk 0:02:52]}  c5 {[%clk 0:03:00]} 5. dxc5 {[%clk 0:02:53]}  Bxc5 {[%clk 0:03:00]} 6. a3 {[%clk 0:02:54]}  O-O {[%clk 0:03:00]} 7. b4 {[%clk 0:02:53]}  Bd6 {[%clk 0:03:00]} 8. Bb2 {[%clk 0:02:54]}  a5 {[%clk 0:02:58]} 9. Nbd2 {[%clk 0:02:55]}  Qe7 {[%clk 0:02:47]} 10. b5 {[%clk 0:02:56]}  Nbd7 {[%clk 0:02:46]} 11. Be2 {[%clk 0:02:56]}  e5 {[%clk 0:02:24]} 12. O-O {[%clk 0:02:57]}  e4 {[%clk 0:02:25]} 13. Nd4 {[%clk 0:02:56]}  Nc5 {[%clk 0:01:58]} 14. Qc2 {[%clk 0:02:55]}  Bg4 {[%clk 0:01:54]} 15. Bxg4 {[%clk 0:02:52]}  Bxh2+ {[%clk 0:01:51]} 16. Kxh2 {[%clk 0:02:51]}  Nxg4+ {[%clk 0:01:52]} 17. Kh1 {[%clk 0:02:08]}  Qh4+ {[%clk 0:01:46]} 18. Kg1 {[%clk 0:02:07]}  Qh2# {[%clk 0:01:47]} 0-1


[Site "https://www.chess.com"]

[Event "Titled Tuesday Blitz July 26 Late 2022"]
[White "Blanco Ronquillo, Humberto L."]
[Black "Rychkov, Roman"]
[WhiteFideId "3504239"]
[BlackFideId "30985595"]
[WhiteElo "2423"]
[BlackElo "1866"]
[Result "1/2-1/2"]
[Round "06"]
[TimeControl "180+1"]
[Date "2022.07.27"]
[WhiteClock "0:00:55"]
[BlackClock "0:00:08"]

1. e4 {[%clk 0:03:00]}  e5 {[%clk 0:02:58]} 2. Nf3 {[%clk 0:03:00]}  Nc6 {[%clk 0:02:58]} 3. Bb5 {[%clk 0:03:00]}  a6 {[%clk 0:02:58]} 4. Ba4 {[%clk 0:03:01]}  Nf6 {[%clk 0:02:58]} 5. O-O {[%clk 0:03:01]}  b5 {[%clk 0:02:59]} 6. Bb3 {[%clk 0:03:00]}  Bc5 {[%clk 0:03:00]} 7. c3 {[%clk 0:02:59]}  d6 {[%clk 0:03:00]} 8. d4 {[%clk 0:02:56]}  Bb6 {[%clk 0:03:01]} 9. Re1 {[%clk 0:02:56]}  O-O {[%clk 0:03:01]} 10. a4 {[%clk 0:02:56]}  Bg4 {[%clk 0:02:55]} 11. Be3 {[%clk 0:02:44]}  Na5 {[%clk 0:02:10]} 12. Bc2 {[%clk 0:02:40]}  Nc4 {[%clk 0:02:09]} 13. Bc1 {[%clk 0:02:39]}  c5 {[%clk 0:01:56]} 14. b3 {[%clk 0:02:33]}  Na5 {[%clk 0:01:42]} 15. dxe5 {[%clk 0:02:19]}  Bxf3 {[%clk 0:01:42]} 16. Qxf3 {[%clk 0:02:20]}  dxe5 {[%clk 0:01:42]} 17. Nd2 {[%clk 0:02:12]}  Qd7 {[%clk 0:01:15]} 18. Nf1 {[%clk 0:02:06]}  c4 {[%clk 0:01:15]} 19. b4 {[%clk 0:02:03]}  Nb3 {[%clk 0:01:04]} 20. Bxb3 {[%clk 0:01:53]}  cxb3 {[%clk 0:01:05]} 21. a5 {[%clk 0:01:53]}  Ba7 {[%clk 0:01:00]} 22. Rb1 {[%clk 0:01:52]}  Qe6 {[%clk 0:00:57]} 23. Qd1 {[%clk 0:01:49]}  Ng4 {[%clk 0:00:45]} 24. Ne3 {[%clk 0:01:47]}  Nxe3 {[%clk 0:00:21]} 25. Bxe3 {[%clk 0:01:48]}  Bxe3 {[%clk 0:00:16]} 26. Rxe3 {[%clk 0:01:49]}  Rfd8 {[%clk 0:00:17]} 27. Rd3 {[%clk 0:01:45]}  Rxd3 {[%clk 0:00:15]} 28. Qxd3 {[%clk 0:01:46]}  Qc4 {[%clk 0:00:15]} 29. Qxc4 {[%clk 0:01:10]}  bxc4 {[%clk 0:00:15]} 30. Rd1 {[%clk 0:01:10]}  Kf8 {[%clk 0:00:12]} 31. Kf1 {[%clk 0:01:10]}  Ke7 {[%clk 0:00:13]} 32. Ke2 {[%clk 0:01:04]}  Rd8 {[%clk 0:00:09]} 33. Rxd8 {[%clk 0:01:03]}  Kxd8 {[%clk 0:00:10]} 34. Kd2 {[%clk 0:01:02]}  Kc7 {[%clk 0:00:10]} 35. Kc1 {[%clk 0:01:01]}  Kc6 {[%clk 0:00:10]} 36. Kb1 {[%clk 0:01:00]}  Kb5 {[%clk 0:00:09]} 37. Ka1 {[%clk 0:01:00]}  Ka4 {[%clk 0:00:05]} 38. Kb2 {[%clk 0:01:00]}  Kb5 {[%clk 0:00:06]} 39. Ka3 {[%clk 0:01:00]}  Kc6 {[%clk 0:00:05]} 40. Kb2 {[%clk 0:01:00]}  Kb5 {[%clk 0:00:06]} 41. Kb1 {[%clk 0:01:00]}  Ka4 {[%clk 0:00:06]} 42. Ka1 {[%clk 0:00:58]}  Kb5 {[%clk 0:00:07]} 43. Kb1 {[%clk 0:00:57]}  Ka4 {[%clk 0:00:07]} 44. Kb2 {[%clk 0:00:55]}  Kb5 {[%clk 0:00:08]} 1/2-1/2


[Site "https://www.chess.com"]

[Event "Titled Tuesday Blitz July 26 Late 2022"]
[White "Bogaudinov, Rushan"]
[Black "Romanchuk, Viktor"]
[WhiteFideId "4129288"]
[BlackFideId "14109271"]
[WhiteElo "2010"]
[BlackElo "2242"]
[Result "0-1"]
[Round "06"]
[TimeControl "180+1"]
[Date "2022.07.27"]
[WhiteClock "0:00:03"]
[BlackClock "0:00:02"]

1. d4 {[%clk 0:02:51]}  d5 {[%clk 0:02:59]} 2. Nf3 {[%clk 0:02:51]}  Nf6 {[%clk 0:02:58]} 3. e3 {[%clk 0:02:51]}  c6 {[%clk 0:02:59]} 4. Be2 {[%clk 0:02:51]}  Bg4 {[%clk 0:02:56]} 5. O-O {[%clk 0:02:51]}  Nbd7 {[%clk 0:02:56]} 6. b3 {[%clk 0:02:51]}  Bxf3 {[%clk 0:02:54]} 7. Bxf3 {[%clk 0:02:51]}  e5 {[%clk 0:02:55]} 8. dxe5 {[%clk 0:02:51]}  Nxe5 {[%clk 0:02:56]} 9. Be2 {[%clk 0:02:52]}  Bd6 {[%clk 0:02:57]} 10. Bb2 {[%clk 0:02:51]}  Qe7 {[%clk 0:02:56]} 11. Nd2 {[%clk 0:02:50]}  O-O {[%clk 0:02:55]} 12. Nf3 {[%clk 0:02:49]}  Rad8 {[%clk 0:02:54]} 13. a4 {[%clk 0:02:44]}  Rfe8 {[%clk 0:02:53]} 14. a5 {[%clk 0:02:44]}  Ne4 {[%clk 0:02:50]} 15. Nd4 {[%clk 0:02:40]}  Qh4 {[%clk 0:02:40]} 16. g3 {[%clk 0:02:36]}  Qh3 {[%clk 0:02:37]} 17. Re1 {[%clk 0:02:31]}  a6 {[%clk 0:02:28]} 18. Bf1 {[%clk 0:02:25]}  Qd7 {[%clk 0:02:20]} 19. Bg2 {[%clk 0:02:23]}  Ng4 {[%clk 0:02:12]} 20. Re2 {[%clk 0:01:58]}  Ne5 {[%clk 0:01:03]} 21. Nf3 {[%clk 0:01:53]}  Nxf3+ {[%clk 0:00:57]} 22. Bxf3 {[%clk 0:01:54]}  Be5 {[%clk 0:00:57]} 23. Bxe5 {[%clk 0:01:48]}  Rxe5 {[%clk 0:00:58]} 24. Qd4 {[%clk 0:01:39]}  Ree8 {[%clk 0:00:50]} 25. Rd1 {[%clk 0:01:34]}  Qc7 {[%clk 0:00:50]} 26. b4 {[%clk 0:01:29]}  Qe5 {[%clk 0:00:40]} 27. c4 {[%clk 0:01:20]}  Nc3 {[%clk 0:00:36]} 28. Qxe5 {[%clk 0:01:10]}  Nxe2+ {[%clk 0:00:33]} 29. Bxe2 {[%clk 0:01:11]}  Rxe5 {[%clk 0:00:33]} 30. Bf3 {[%clk 0:01:05]}  Kf8 {[%clk 0:00:32]} 31. c5 {[%clk 0:00:55]}  Re7 {[%clk 0:00:22]} 32. Rd4 {[%clk 0:00:55]}  g6 {[%clk 0:00:19]} 33. h4 {[%clk 0:00:55]}  f5 {[%clk 0:00:19]} 34. Kg2 {[%clk 0:00:54]}  Kg7 {[%clk 0:00:20]} 35. Kg1 {[%clk 0:00:54]}  Kf6 {[%clk 0:00:20]} 36. Kg2 {[%clk 0:00:54]}  h6 {[%clk 0:00:21]} 37. Kg1 {[%clk 0:00:53]}  g5 {[%clk 0:00:21]} 38. hxg5+ {[%clk 0:00:54]}  hxg5 {[%clk 0:00:21]} 39. g4 {[%clk 0:00:52]}  Rh8 {[%clk 0:00:18]} 40. gxf5 {[%clk 0:00:51]}  Kxf5 {[%clk 0:00:19]} 41. Bg4+ {[%clk 0:00:36]}  Kf6 {[%clk 0:00:19]} 42. Kg2 {[%clk 0:00:32]}  Re4 {[%clk 0:00:18]} 43. Kf3 {[%clk 0:00:17]}  Rhe8 {[%clk 0:00:11]} 44. Bd7 {[%clk 0:00:13]}  Rxd4 {[%clk 0:00:09]} 45. exd4 {[%clk 0:00:14]}  Re4 {[%clk 0:00:09]} 46. Bc8 {[%clk 0:00:13]}  Rxd4 {[%clk 0:00:09]} 47. Bxb7 {[%clk 0:00:13]}  Rxb4 {[%clk 0:00:10]} 48. Bxc6 {[%clk 0:00:12]}  Ke5 {[%clk 0:00:10]} 49. Bd7 {[%clk 0:00:08]}  d4 {[%clk 0:00:06]} 50. Ke2 {[%clk 0:00:06]}  Rb3 {[%clk 0:00:03]} 51. Bc8 {[%clk 0:00:03]}  Ra3 {[%clk 0:00:02]} 0-1


[Site "https://www.chess.com"]

[Event "Titled Tuesday Blitz July 26 Late 2022"]
[White "Derraugh, Geordie"]
[Black "Lewtak, Damian"]
[WhiteFideId "2603950"]
[BlackFideId "1141724"]
[WhiteElo "2116"]
[BlackElo "2359"]
[Result "0-1"]
[Round "06"]
[TimeControl "180+1"]
[Date "2022.07.27"]
[WhiteClock "0:00:02"]
[BlackClock "0:00:56"]

1. e4 {[%clk 0:03:00]}  c5 {[%clk 0:02:55]} 2. c3 {[%clk 0:03:00]}  d5 {[%clk 0:02:53]} 3. exd5 {[%clk 0:03:00]}  Qxd5 {[%clk 0:02:53]} 4. d4 {[%clk 0:03:01]}  Nc6 {[%clk 0:02:52]} 5. Nf3 {[%clk 0:03:01]}  Nf6 {[%clk 0:02:53]} 6. Na3 {[%clk 0:03:00]}  Bg4 {[%clk 0:02:52]} 7. Bc4 {[%clk 0:02:57]}  Qe4+ {[%clk 0:02:51]} 8. Be3 {[%clk 0:02:56]}  cxd4 {[%clk 0:02:47]} 9. cxd4 {[%clk 0:02:35]}  e5 {[%clk 0:02:47]} 10. Bxf7+ {[%clk 0:02:32]}  Kxf7 {[%clk 0:02:31]} 11. Ng5+ {[%clk 0:02:32]}  Kg6 {[%clk 0:02:30]} 12. Nxe4 {[%clk 0:02:28]}  Bxd1 {[%clk 0:02:29]} 13. Nxf6 {[%clk 0:02:28]}  Ba4 {[%clk 0:02:20]} 14. Ng4 {[%clk 0:02:11]}  exd4 {[%clk 0:02:10]} 15. Bd2 {[%clk 0:02:10]}  Re8+ {[%clk 0:02:08]} 16. Kf1 {[%clk 0:02:07]}  h5 {[%clk 0:02:00]} 17. Ne3 {[%clk 0:01:52]}  dxe3 {[%clk 0:01:58]} 18. fxe3 {[%clk 0:01:52]}  Bxa3 {[%clk 0:01:51]} 19. bxa3 {[%clk 0:01:52]}  Rhf8+ {[%clk 0:01:50]} 20. Ke1 {[%clk 0:01:48]}  Rf5 {[%clk 0:01:46]} 21. Rb1 {[%clk 0:01:46]}  Re7 {[%clk 0:01:38]} 22. Rf1 {[%clk 0:01:40]}  Bc2 {[%clk 0:01:33]} 23. Rxf5 {[%clk 0:01:27]}  Bxf5 {[%clk 0:01:34]} 24. Rb2 {[%clk 0:01:22]}  a6 {[%clk 0:01:29]} 25. Rb6 {[%clk 0:01:17]}  Be4 {[%clk 0:01:28]} 26. g3 {[%clk 0:01:11]}  Kf5 {[%clk 0:01:27]} 27. a4 {[%clk 0:01:09]}  Kg4 {[%clk 0:01:26]} 28. Rb2 {[%clk 0:01:00]}  Rf7 {[%clk 0:01:21]} 29. Bc3 {[%clk 0:00:58]}  Kh3 {[%clk 0:01:18]} 30. a5 {[%clk 0:00:54]}  g5 {[%clk 0:01:17]} 31. Rd2 {[%clk 0:00:39]}  Bg2 {[%clk 0:01:15]} 32. Rd6 {[%clk 0:00:28]}  Kxh2 {[%clk 0:01:13]} 33. Rh6 {[%clk 0:00:29]}  Bf3 {[%clk 0:01:10]} 34. Kf2 {[%clk 0:00:18]}  Bg4+ {[%clk 0:01:11]} 35. Rf6 {[%clk 0:00:18]}  Nd8 {[%clk 0:01:00]} 36. e4 {[%clk 0:00:12]}  Rxf6+ {[%clk 0:00:59]} 37. Bxf6 {[%clk 0:00:12]}  Ne6 {[%clk 0:00:59]} 38. e5 {[%clk 0:00:11]}  Bf5 {[%clk 0:00:58]} 39. Be7 {[%clk 0:00:09]}  h4 {[%clk 0:00:54]} 40. gxh4 {[%clk 0:00:09]}  g4 {[%clk 0:00:55]} 41. h5 {[%clk 0:00:01]}  g3+ {[%clk 0:00:56]} 42. Kf3 {[%clk 0:00:02]}  g2 {[%clk 0:00:57]} 43. h6 {[%clk 0:00:02]}  g1=Q {[%clk 0:00:56]} 0-1


[Site "https://www.chess.com"]

[Event "Titled Tuesday Blitz July 26 Late 2022"]
[White "Djordjevic, Vuk"]
[Black "Jorquera, Marcelo"]
[WhiteFideId "902098"]
[BlackFideId "3401197"]
[WhiteElo "2456"]
[BlackElo "2136"]
[Result "1-0"]
[Round "06"]
[TimeControl "180+1"]
[Date "2022.07.27"]
[WhiteClock "0:00:07"]
[BlackClock "0:00:08"]

1. e4 {[%clk 0:03:00]}  d5 {[%clk 0:02:59]} 2. f3 {[%clk 0:02:59]}  dxe4 {[%clk 0:02:51]} 3. fxe4 {[%clk 0:03:00]}  e5 {[%clk 0:02:51]} 4. Nf3 {[%clk 0:03:00]}  Bc5 {[%clk 0:02:46]} 5. d4 {[%clk 0:02:59]}  Bxd4 {[%clk 0:02:42]} 6. Bc4 {[%clk 0:02:59]}  Nf6 {[%clk 0:02:22]} 7. c3 {[%clk 0:02:57]}  Bb6 {[%clk 0:02:15]} 8. Qxd8+ {[%clk 0:02:50]}  Kxd8 {[%clk 0:02:15]} 9. Nxe5 {[%clk 0:02:51]}  Ke7 {[%clk 0:02:12]} 10. Nxf7 {[%clk 0:02:50]}  Rf8 {[%clk 0:02:11]} 11. Bg5 {[%clk 0:01:56]}  h6 {[%clk 0:01:56]} 12. Bxf6+ {[%clk 0:01:55]}  Kxf6 {[%clk 0:01:51]} 13. Rf1+ {[%clk 0:01:55]}  Ke7 {[%clk 0:01:50]} 14. Nd2 {[%clk 0:01:55]}  Nc6 {[%clk 0:01:45]} 15. O-O-O {[%clk 0:01:46]}  Be6 {[%clk 0:01:41]} 16. Rf3 {[%clk 0:01:17]}  Rxf7 {[%clk 0:01:37]} 17. Rg3 {[%clk 0:01:11]}  Ne5 {[%clk 0:01:29]} 18. Bxe6 {[%clk 0:01:10]}  Kxe6 {[%clk 0:01:29]} 19. Nb3 {[%clk 0:01:10]}  c6 {[%clk 0:01:11]} 20. Nd4+ {[%clk 0:01:06]}  Bxd4 {[%clk 0:01:08]} 21. cxd4 {[%clk 0:01:07]}  Nd7 {[%clk 0:01:05]} 22. e5 {[%clk 0:01:07]}  Nb6 {[%clk 0:01:03]} 23. Rg6+ {[%clk 0:01:04]}  Kd5 {[%clk 0:00:43]} 24. Rd6+ {[%clk 0:00:58]}  Kc4 {[%clk 0:00:43]} 25. Rd2 {[%clk 0:00:50]}  a5 {[%clk 0:00:38]} 26. b3+ {[%clk 0:00:38]}  Kb5 {[%clk 0:00:37]} 27. a4+ {[%clk 0:00:36]}  Ka6 {[%clk 0:00:36]} 28. Kb2 {[%clk 0:00:25]}  Nd5 {[%clk 0:00:32]} 29. g3 {[%clk 0:00:20]}  Raf8 {[%clk 0:00:31]} 30. Rg6 {[%clk 0:00:19]}  Rf2 {[%clk 0:00:30]} 31. Kc2 {[%clk 0:00:19]}  Nb4+ {[%clk 0:00:29]} 32. Kc1 {[%clk 0:00:19]}  R2f7 {[%clk 0:00:22]} 33. d5 {[%clk 0:00:17]}  Nxd5 {[%clk 0:00:22]} 34. Rxd5 {[%clk 0:00:16]}  Re7 {[%clk 0:00:20]} 35. h4 {[%clk 0:00:07]}  Ka7 {[%clk 0:00:20]} 36. Rxa5+ {[%clk 0:00:07]}  Kb6 {[%clk 0:00:20]} 37. b4 {[%clk 0:00:07]}  Rf5 {[%clk 0:00:20]} 38. Rc5 {[%clk 0:00:06]}  Rf3 {[%clk 0:00:19]} 39. a5+ {[%clk 0:00:04]}  Ka7 {[%clk 0:00:18]} 40. Kb2 {[%clk 0:00:03]}  Rd7 {[%clk 0:00:17]} 41. Rc3 {[%clk 0:00:03]}  Rd2+ {[%clk 0:00:16]} 42. Kb3 {[%clk 0:00:03]}  Rf7 {[%clk 0:00:15]} 43. e6 {[%clk 0:00:03]}  Re7 {[%clk 0:00:15]} 44. Re3 {[%clk 0:00:03]}  Rd6 {[%clk 0:00:15]} 45. g4 {[%clk 0:00:04]}  Kb8 {[%clk 0:00:15]} 46. h5 {[%clk 0:00:04]}  Kc7 {[%clk 0:00:14]} 47. Kc4 {[%clk 0:00:05]}  Rd5 {[%clk 0:00:14]} 48. Rd3 {[%clk 0:00:02]}  Re5 {[%clk 0:00:12]} 49. Rd7+ {[%clk 0:00:03]}  Rxd7 {[%clk 0:00:11]} 50. exd7 {[%clk 0:00:03]}  Rg5 {[%clk 0:00:10]} 51. Rxg5 {[%clk 0:00:03]}  hxg5 {[%clk 0:00:10]} 52. Kc5 {[%clk 0:00:04]}  Kxd7 {[%clk 0:00:09]} 53. Kb6 {[%clk 0:00:04]}  Kc8 {[%clk 0:00:10]} 54. a6 {[%clk 0:00:05]}  bxa6 {[%clk 0:00:10]} 55. Kxc6 {[%clk 0:00:05]}  Kb8 {[%clk 0:00:08]} 56. Kb6 {[%clk 0:00:06]}  Ka8 {[%clk 0:00:08]} 57. Kxa6 {[%clk 0:00:06]}  Kb8 {[%clk 0:00:09]} 58. Kb6 {[%clk 0:00:07]}  Ka8 {[%clk 0:00:09]} 59. Kc7 {[%clk 0:00:07]}  Ka7 {[%clk 0:00:08]} 60. b5 {[%clk 0:00:07]} 1-0


[Site "https://www.chess.com"]

[Event "Titled Tuesday Blitz July 26 Late 2022"]
[White "Domingo Nunez, Ruben"]
[Black "Deviprasath, Sharvesh"]
[WhiteFideId "22245570"]
[BlackFideId "30938228"]
[WhiteElo "2373"]
[BlackElo "2102"]
[Result "1-0"]
[Round "06"]
[TimeControl "180+1"]
[Date "2022.07.26"]
[WhiteClock "0:01:14"]
[BlackClock "0:01:38"]

1. b3 {[%clk 0:02:59]}  Nf6 {[%clk 0:02:51]} 2. Bb2 {[%clk 0:03:00]}  g6 {[%clk 0:02:52]} 3. e4 {[%clk 0:02:56]}  Bg7 {[%clk 0:02:52]} 4. e5 {[%clk 0:02:56]}  Nd5 {[%clk 0:02:52]} 5. c4 {[%clk 0:02:56]}  Nb6 {[%clk 0:02:53]} 6. h4 {[%clk 0:02:57]}  h5 {[%clk 0:02:52]} 7. Nf3 {[%clk 0:02:51]}  d5 {[%clk 0:02:53]} 8. c5 {[%clk 0:02:51]}  N6d7 {[%clk 0:02:53]} 9. d4 {[%clk 0:02:52]}  c6 {[%clk 0:02:53]} 10. Bd3 {[%clk 0:02:51]}  Nf8 {[%clk 0:02:53]} 11. Qc2 {[%clk 0:02:51]}  Bg4 {[%clk 0:02:53]} 12. Ng5 {[%clk 0:02:50]}  Ne6 {[%clk 0:02:49]} 13. Nxf7 {[%clk 0:02:32]}  Kxf7 {[%clk 0:02:45]} 14. Bxg6+ {[%clk 0:02:33]}  Kg8 {[%clk 0:02:45]} 15. f3 {[%clk 0:02:33]}  Nxd4 {[%clk 0:02:14]} 16. Bxd4 {[%clk 0:02:29]}  Be6 {[%clk 0:02:15]} 17. f4 {[%clk 0:02:20]}  Nd7 {[%clk 0:02:10]} 18. f5 {[%clk 0:02:17]}  Qa5+ {[%clk 0:01:57]} 19. Nd2 {[%clk 0:01:51]}  Nxe5 {[%clk 0:01:47]} 20. fxe6 {[%clk 0:01:41]}  Rf8 {[%clk 0:01:46]} 21. Bxe5 {[%clk 0:01:22]}  Bxe5 {[%clk 0:01:45]} 22. Bf7+ {[%clk 0:01:23]}  Rxf7 {[%clk 0:01:41]} 23. exf7+ {[%clk 0:01:24]}  Kxf7 {[%clk 0:01:42]} 24. O-O+ {[%clk 0:01:23]}  Kg7 {[%clk 0:01:38]} 25. Nf3 {[%clk 0:01:14]} 1-0


[Site "https://www.chess.com"]

[Event "Titled Tuesday Blitz July 26 Late 2022"]
[White "Hafiz, Arif Abdul"]
[Black "Paravyan, David"]
[WhiteFideId "7104227"]
[BlackFideId "4194985"]
[WhiteElo "2198"]
[BlackElo "2569"]
[Result "1-0"]
[Round "06"]
[TimeControl "180+1"]
[Date "2022.07.26"]
[WhiteClock "0:00:16"]
[BlackClock "0:00:01"]

1. e4 {[%clk 0:03:00]}  e5 {[%clk 0:03:00]} 2. Nc3 {[%clk 0:02:58]}  Nf6 {[%clk 0:03:00]} 3. f4 {[%clk 0:02:56]}  d5 {[%clk 0:03:00]} 4. fxe5 {[%clk 0:02:56]}  Nxe4 {[%clk 0:03:00]} 5. Qf3 {[%clk 0:02:57]}  Nc6 {[%clk 0:02:59]} 6. Bb5 {[%clk 0:02:56]}  Nxc3 {[%clk 0:02:59]} 7. dxc3 {[%clk 0:02:57]}  Qh4+ {[%clk 0:03:00]} 8. g3 {[%clk 0:02:57]}  Qe4+ {[%clk 0:03:01]} 9. Qxe4 {[%clk 0:02:58]}  dxe4 {[%clk 0:03:02]} 10. Ne2 {[%clk 0:02:57]}  Bd7 {[%clk 0:02:58]} 11. Bxc6 {[%clk 0:02:53]}  Bxc6 {[%clk 0:02:50]} 12. Be3 {[%clk 0:02:54]}  Be7 {[%clk 0:02:39]} 13. O-O-O {[%clk 0:02:42]}  O-O {[%clk 0:02:37]} 14. Nd4 {[%clk 0:02:39]}  Bd7 {[%clk 0:02:34]} 15. Rhe1 {[%clk 0:02:34]}  Rad8 {[%clk 0:02:27]} 16. Rd2 {[%clk 0:02:06]}  a6 {[%clk 0:02:12]} 17. h4 {[%clk 0:02:05]}  Bg4 {[%clk 0:02:11]} 18. Bf4 {[%clk 0:02:04]}  c5 {[%clk 0:02:09]} 19. Nb3 {[%clk 0:01:59]}  Bf5 {[%clk 0:02:07]} 20. Rxd8 {[%clk 0:01:58]}  Rxd8 {[%clk 0:02:08]} 21. Nd2 {[%clk 0:01:58]}  h6 {[%clk 0:02:02]} 22. Nxe4 {[%clk 0:01:58]}  g5 {[%clk 0:01:56]} 23. hxg5 {[%clk 0:01:42]}  Bxe4 {[%clk 0:01:56]} 24. Rxe4 {[%clk 0:01:41]}  hxg5 {[%clk 0:01:57]} 25. Be3 {[%clk 0:01:42]}  Kg7 {[%clk 0:01:57]} 26. b4 {[%clk 0:01:36]}  cxb4 {[%clk 0:01:53]} 27. cxb4 {[%clk 0:01:35]}  b5 {[%clk 0:01:40]} 28. g4 {[%clk 0:01:28]}  Kg6 {[%clk 0:01:29]} 29. c3 {[%clk 0:01:23]}  Rh8 {[%clk 0:01:13]} 30. Kc2 {[%clk 0:01:06]}  Rh2+ {[%clk 0:01:12]} 31. Bd2 {[%clk 0:01:05]}  Rg2 {[%clk 0:01:07]} 32. a3 {[%clk 0:01:05]}  f5 {[%clk 0:00:40]} 33. exf6 {[%clk 0:01:03]}  Bxf6 {[%clk 0:00:41]} 34. c4 {[%clk 0:00:54]}  bxc4 {[%clk 0:00:35]} 35. Rxc4 {[%clk 0:00:55]}  Be5 {[%clk 0:00:34]} 36. Kd1 {[%clk 0:00:33]}  Rg1+ {[%clk 0:00:12]} 37. Ke2 {[%clk 0:00:33]}  Rg2+ {[%clk 0:00:13]} 38. Ke1 {[%clk 0:00:31]}  Bg3+ {[%clk 0:00:07]} 39. Kd1 {[%clk 0:00:31]}  Rg1+ {[%clk 0:00:08]} 40. Kc2 {[%clk 0:00:30]}  Rg2 {[%clk 0:00:07]} 41. Rc6+ {[%clk 0:00:27]}  Kf7 {[%clk 0:00:07]} 42. Kd3 {[%clk 0:00:23]}  Bf4 {[%clk 0:00:04]} 43. Bxf4 {[%clk 0:00:22]}  gxf4 {[%clk 0:00:05]} 44. Rxa6 {[%clk 0:00:23]}  Rxg4 {[%clk 0:00:06]} 45. Ke4 {[%clk 0:00:24]}  Ke7 {[%clk 0:00:06]} 46. Kf3 {[%clk 0:00:22]}  Rh4 {[%clk 0:00:07]} 47. b5 {[%clk 0:00:22]}  Kd7 {[%clk 0:00:07]} 48. a4 {[%clk 0:00:22]}  Kc7 {[%clk 0:00:08]} 49. a5 {[%clk 0:00:21]}  Rh3+ {[%clk 0:00:05]} 50. Kxf4 {[%clk 0:00:21]}  Rb3 {[%clk 0:00:03]} 51. b6+ {[%clk 0:00:19]}  Kb8 {[%clk 0:00:04]} 52. Ke4 {[%clk 0:00:16]}  Rb5 {[%clk 0:00:04]} 53. Kd4 {[%clk 0:00:15]}  Rh5 {[%clk 0:00:05]} 54. Ra7 {[%clk 0:00:15]}  Rg5 {[%clk 0:00:05]} 55. Kc4 {[%clk 0:00:15]}  Rh5 {[%clk 0:00:06]} 56. Kb4 {[%clk 0:00:15]}  Rh4+ {[%clk 0:00:06]} 57. Kb5 {[%clk 0:00:15]}  Rh8 {[%clk 0:00:03]} 58. Ka6 {[%clk 0:00:15]}  Rg8 {[%clk 0:00:03]} 59. Rb7+ {[%clk 0:00:15]}  Ka8 {[%clk 0:00:04]} 60. Rc7 {[%clk 0:00:16]}  Kb8 {[%clk 0:00:04]} 61. Rc5 {[%clk 0:00:16]}  Rh8 {[%clk 0:00:03]} 62. Rg5 {[%clk 0:00:16]}  Rf8 {[%clk 0:00:03]} 63. Kb5 {[%clk 0:00:16]}  Re8 {[%clk 0:00:03]} 64. a6 {[%clk 0:00:17]}  Rf8 {[%clk 0:00:04]} 65. a7+ {[%clk 0:00:14]}  Ka8 {[%clk 0:00:02]} 66. Ka6 {[%clk 0:00:14]}  Rf6 {[%clk 0:00:01]} 67. Rg8+ {[%clk 0:00:15]}  Rf8 {[%clk 0:00:01]} 68. b7# {[%clk 0:00:16]} 1-0


[Site "https://www.chess.com"]